{"text_format":"3","workbook":"xlsx","n_sheets":3,"sheets":["Dados de cliente potenciais","Vendas Previstas ","Previsão Ponderada Mensal"],"not_rendered":{"charts":1,"defined_names":10},"read":"whole","date_system":"1900"}

{"sheet":"Dados de cliente potenciais","index":0,"n_rows":9,"n_cols":10,"rows_kept":9}
[null,"Nome da Empresa"]
[null,"Gerenciador Detalhado de Clientes em Potencial"]
[null,{"$f":"TODAY()","v":"2022-04-02"}]
[{"$nulls":8},{"$f":"Nome_Empresa","v":"Nome da Empresa"},"CONFIDENCIAL"]
[null,"Nome do Cliente em Potencial","Contato do cliente em potencial","Cliente em potencial \nFonte","Cliente em potencial \nRegião","Cliente em potencial \nTipo","Possível oportunidade","Probabilidade \nde venda","Previsão \nFechada em","Ponderada \nPrevisão"]
[null,"A. Datum Corporation",{"$nulls":3},"Estratégico",{"v":300000,"d":"R$ 300,000.00"},{"v":0.9,"d":"90%"},"Janeiro",{"$f":"IFERROR(IF(LeadData[[#This Row],[Probabilidade \nde venda]]<>\"\",LeadData[[#This Row],[Probabilidade \nde venda]]*LeadData[[#This Row],[Possível oportunidade]],\"\"),\"\")","v":{"v":270000,"d":"R$ 270,000.00"}}]
[null,"Adventure Works",{"$nulls":3},"Estratégico",{"v":200000,"d":"R$ 200,000.00"},{"v":0.1,"d":"10%"},"Fevereiro",{"$f":"IFERROR(IF(LeadData[[#This Row],[Probabilidade \nde venda]]<>\"\",LeadData[[#This Row],[Probabilidade \nde venda]]*LeadData[[#This Row],[Possível oportunidade]],\"\"),\"\")","v":{"v":20000,"d":"R$ 20,000.00"}}]
[null,"Alpine Ski House",{"$nulls":3},"Tático",{"v":100000,"d":"R$ 100,000.00"},{"v":0.2,"d":"20%"},"Março",{"$f":"IFERROR(IF(LeadData[[#This Row],[Probabilidade \nde venda]]<>\"\",LeadData[[#This Row],[Probabilidade \nde venda]]*LeadData[[#This Row],[Possível oportunidade]],\"\"),\"\")","v":{"v":20000,"d":"R$ 20,000.00"}}]
[null,"Total",{"$nulls":4},{"$f":"SUBTOTAL(109,LeadData[Possível oportunidade])","v":{"v":600000,"d":"R$ 600,000.00"}},null,null,{"$f":"SUBTOTAL(109,LeadData[Ponderada \nPrevisão])","v":{"v":310000,"d":"R$ 310,000.00"}}]

{"sheet":"Vendas Previstas ","index":1,"n_rows":21,"n_cols":14,"rows_kept":21,"merged":[[3,12,3,13]]}
[null,{"$f":"Nome_Empresa","v":"Nome da Empresa"}]
[null,"Vendas Previstas"]
[null,{"$f":"DataMonitor","v":"2022-04-02"}]
[{"$nulls":11},{"$f":"Nome_Empresa","v":"Nome da Empresa"},"CONFIDENCIAL"]
[null,"Nome do cliente em potencial","Janeiro \nPrevisão","Fevereiro \nPrevisão","Março \nPrevisão","Abril \nPrevisão","Maio \nPrevisão","Junho \nPrevisão","Previsão para julho","Agosto \nPrevisão","Setembro \nPrevisão","Outubro \nPrevisão","Novembro \nPrevisão","Dezembro \nPrevisão"]
[null,{"$f":"IFERROR(IF(AND(LeadData[[#This Row],[Nome do Cliente em Potencial]] <> \"\", ROW(PrevisãoVendas[Nome do cliente em potencial])<>ÚltimaEntrada),LeadData[Nome do Cliente em Potencial], \"\"),\"\")","v":"A. Datum Corporation"},{"$f":"IFERROR(IF(LeadData[[#This Row],[Previsão \nFechada em]] <>\"\",IF(LeadData[[#This Row],[Previsão \nFechada em]]= \"Janeiro\",LeadData[Ponderada \nPrevisão],0),\"\"),\"\")","v":{"v":270000,"d":"R$ 270,000"}},{"$f":"IFERROR(IF(LeadData[[#This Row],[Previsão \nFechada em]] <>\"\",IF(LeadData[[#This Row],[Previsão \nFechada em]] = \"Fevereiro\",LeadData[Ponderada \nPrevisão],0),\"\"),\"\")","v":{"v":0,"d":"R$ 0"}},{"$f":"IFERROR(IF(LeadData[[#This Row],[Previsão \nFechada em]] <>\"\",IF(LeadData[[#This Row],[Previsão \nFechada em]] = \"Março\",LeadData[Ponderada \nPrevisão],0),\"\"),\"\")","v":{"v":0,"d":"R$ 0"}},{"$f":"IFERROR(IF(LeadData[[#This Row],[Previsão \nFechada em]] <>\"\",IF(LeadData[[#This Row],[Previsão \nFechada em]] = \"Abril\",LeadData[Ponderada \nPrevisão],0),\"\"),\"\")","v":{"v":0,"d":"R$ 0"}},{"$f":"IFERROR(IF(LeadData[[#This Row],[Previsão \nFechada em]] <>\"\",IF(LeadData[[#This Row],[Previsão \nFechada em]] = \"Maio\",LeadData[Ponderada \nPrevisão],0),\"\"),\"\")","v":{"v":0,"d":"R$ 0"}},{"$f":"IFERROR(IF(LeadData[[#This Row],[Previsão \nFechada em]] <>\"\",IF(LeadData[[#This Row],[Previsão \nFechada em]] = \"Junho\",LeadData[Ponderada \nPrevisão],0),\"\"),\"\")","v":{"v":0,"d":"R$ 0"}},{"$f":"IFERROR(IF(LeadData[[#This Row],[Previsão \nFechada em]] <>\"\",IF(LeadData[[#This Row],[Previsão \nFechada em]] = \"July\",LeadData[Ponderada \nPrevisão],0),\"\"),\"\")","v":{"v":0,"d":"R$ 0"}},{"$f":"IFERROR(IF(LeadData[[#This Row],[Previsão \nFechada em]] <>\"\",IF(LeadData[[#This Row],[Previsão \nFechada em]] = \"Agosto\",LeadData[Ponderada \nPrevisão],0),\"\"),\"\")","v":{"v":0,"d":"R$ 0"}},{"$f":"IFERROR(IF(LeadData[[#This Row],[Previsão \nFechada em]] <>\"\",IF(LeadData[[#This Row],[Previsão \nFechada em]] = \"Setembro\",LeadData[Ponderada \nPrevisão],0),\"\"),\"\")","v":{"v":0,"d":"R$ 0"}},{"$f":"IFERROR(IF(LeadData[[#This Row],[Previsão \nFechada em]] <>\"\",IF(LeadData[[#This Row],[Previsão \nFechada em]] = \"Outubro\",LeadData[Ponderada \nPrevisão],0),\"\"),\"\")","v":{"v":0,"d":"R$ 0"}},{"$f":"IFERROR(IF(LeadData[[#This Row],[Previsão \nFechada em]] <>\"\",IF(LeadData[[#This Row],[Previsão \nFechada em]] = \"Novembro\",LeadData[Ponderada \nPrevisão],0),\"\"),\"\")","v":{"v":0,"d":"R$ 0"}},{"$f":"IFERROR(IF(LeadData[[#This Row],[Previsão \nFechada em]] <>\"\",IF(LeadData[[#This Row],[Previsão \nFechada em]] = \"Dezembro\",LeadData[Ponderada \nPrevisão],0),\"\"),\"\")","v":{"v":0,"d":"R$ 0"}}]
[null,{"$f":"IFERROR(IF(AND(LeadData[[#This Row],[Nome do Cliente em Potencial]] <> \"\", ROW(PrevisãoVendas[Nome do cliente em potencial])<>ÚltimaEntrada),LeadData[Nome do Cliente em Potencial], \"\"),\"\")","v":"Adventure Works"},{"$f":"IFERROR(IF(LeadData[[#This Row],[Previsão \nFechada em]] <>\"\",IF(LeadData[[#This Row],[Previsão \nFechada em]]= \"Janeiro\",LeadData[Ponderada \nPrevisão],0),\"\"),\"\")","v":{"v":0,"d":"R$ 0"}},{"$f":"IFERROR(IF(LeadData[[#This Row],[Previsão \nFechada em]] <>\"\",IF(LeadData[[#This Row],[Previsão \nFechada em]] = \"Fevereiro\",LeadData[Ponderada \nPrevisão],0),\"\"),\"\")","v":{"v":20000,"d":"R$ 20,000"}},{"$f":"IFERROR(IF(LeadData[[#This Row],[Previsão \nFechada em]] <>\"\",IF(LeadData[[#This Row],[Previsão \nFechada em]] = \"Março\",LeadData[Ponderada \nPrevisão],0),\"\"),\"\")","v":{"v":0,"d":"R$ 0"}},{"$f":"IFERROR(IF(LeadData[[#This Row],[Previsão \nFechada em]] <>\"\",IF(LeadData[[#This Row],[Previsão \nFechada em]] = \"Abril\",LeadData[Ponderada \nPrevisão],0),\"\"),\"\")","v":{"v":0,"d":"R$ 0"}},{"$f":"IFERROR(IF(LeadData[[#This Row],[Previsão \nFechada em]] <>\"\",IF(LeadData[[#This Row],[Previsão \nFechada em]] = \"Maio\",LeadData[Ponderada \nPrevisão],0),\"\"),\"\")","v":{"v":0,"d":"R$ 0"}},{"$f":"IFERROR(IF(LeadData[[#This Row],[Previsão \nFechada em]] <>\"\",IF(LeadData[[#This Row],[Previsão \nFechada em]] = \"Junho\",LeadData[Ponderada \nPrevisão],0),\"\"),\"\")","v":{"v":0,"d":"R$ 0"}},{"$f":"IFERROR(IF(LeadData[[#This Row],[Previsão \nFechada em]] <>\"\",IF(LeadData[[#This Row],[Previsão \nFechada em]] = \"July\",LeadData[Ponderada \nPrevisão],0),\"\"),\"\")","v":{"v":0,"d":"R$ 0"}},{"$f":"IFERROR(IF(LeadData[[#This Row],[Previsão \nFechada em]] <>\"\",IF(LeadData[[#This Row],[Previsão \nFechada em]] = \"Agosto\",LeadData[Ponderada \nPrevisão],0),\"\"),\"\")","v":{"v":0,"d":"R$ 0"}},{"$f":"IFERROR(IF(LeadData[[#This Row],[Previsão \nFechada em]] <>\"\",IF(LeadData[[#This Row],[Previsão \nFechada em]] = \"Setembro\",LeadData[Ponderada \nPrevisão],0),\"\"),\"\")","v":{"v":0,"d":"R$ 0"}},{"$f":"IFERROR(IF(LeadData[[#This Row],[Previsão \nFechada em]] <>\"\",IF(LeadData[[#This Row],[Previsão \nFechada em]] = \"Outubro\",LeadData[Ponderada \nPrevisão],0),\"\"),\"\")","v":{"v":0,"d":"R$ 0"}},{"$f":"IFERROR(IF(LeadData[[#This Row],[Previsão \nFechada em]] <>\"\",IF(LeadData[[#This Row],[Previsão \nFechada em]] = \"Novembro\",LeadData[Ponderada \nPrevisão],0),\"\"),\"\")","v":{"v":0,"d":"R$ 0"}},{"$f":"IFERROR(IF(LeadData[[#This Row],[Previsão \nFechada em]] <>\"\",IF(LeadData[[#This Row],[Previsão \nFechada em]] = \"Dezembro\",LeadData[Ponderada \nPrevisão],0),\"\"),\"\")","v":{"v":0,"d":"R$ 0"}}]
[null,{"$f":"IFERROR(IF(AND(LeadData[[#This Row],[Nome do Cliente em Potencial]] <> \"\", ROW(PrevisãoVendas[Nome do cliente em potencial])<>ÚltimaEntrada),LeadData[Nome do Cliente em Potencial], \"\"),\"\")","v":"Alpine Ski House"},{"$f":"IFERROR(IF(LeadData[[#This Row],[Previsão \nFechada em]] <>\"\",IF(LeadData[[#This Row],[Previsão \nFechada em]]= \"Janeiro\",LeadData[Ponderada \nPrevisão],0),\"\"),\"\")","v":{"v":0,"d":"R$ 0"}},{"$f":"IFERROR(IF(LeadData[[#This Row],[Previsão \nFechada em]] <>\"\",IF(LeadData[[#This Row],[Previsão \nFechada em]] = \"Fevereiro\",LeadData[Ponderada \nPrevisão],0),\"\"),\"\")","v":{"v":0,"d":"R$ 0"}},{"$f":"IFERROR(IF(LeadData[[#This Row],[Previsão \nFechada em]] <>\"\",IF(LeadData[[#This Row],[Previsão \nFechada em]] = \"Março\",LeadData[Ponderada \nPrevisão],0),\"\"),\"\")","v":{"v":20000,"d":"R$ 20,000"}},{"$f":"IFERROR(IF(LeadData[[#This Row],[Previsão \nFechada em]] <>\"\",IF(LeadData[[#This Row],[Previsão \nFechada em]] = \"Abril\",LeadData[Ponderada \nPrevisão],0),\"\"),\"\")","v":{"v":0,"d":"R$ 0"}},{"$f":"IFERROR(IF(LeadData[[#This Row],[Previsão \nFechada em]] <>\"\",IF(LeadData[[#This Row],[Previsão \nFechada em]] = \"Maio\",LeadData[Ponderada \nPrevisão],0),\"\"),\"\")","v":{"v":0,"d":"R$ 0"}},{"$f":"IFERROR(IF(LeadData[[#This Row],[Previsão \nFechada em]] <>\"\",IF(LeadData[[#This Row],[Previsão \nFechada em]] = \"Junho\",LeadData[Ponderada \nPrevisão],0),\"\"),\"\")","v":{"v":0,"d":"R$ 0"}},{"$f":"IFERROR(IF(LeadData[[#This Row],[Previsão \nFechada em]] <>\"\",IF(LeadData[[#This Row],[Previsão \nFechada em]] = \"July\",LeadData[Ponderada \nPrevisão],0),\"\"),\"\")","v":{"v":0,"d":"R$ 0"}},{"$f":"IFERROR(IF(LeadData[[#This Row],[Previsão \nFechada em]] <>\"\",IF(LeadData[[#This Row],[Previsão \nFechada em]] = \"Agosto\",LeadData[Ponderada \nPrevisão],0),\"\"),\"\")","v":{"v":0,"d":"R$ 0"}},{"$f":"IFERROR(IF(LeadData[[#This Row],[Previsão \nFechada em]] <>\"\",IF(LeadData[[#This Row],[Previsão \nFechada em]] = \"Setembro\",LeadData[Ponderada \nPrevisão],0),\"\"),\"\")","v":{"v":0,"d":"R$ 0"}},{"$f":"IFERROR(IF(LeadData[[#This Row],[Previsão \nFechada em]] <>\"\",IF(LeadData[[#This Row],[Previsão \nFechada em]] = \"Outubro\",LeadData[Ponderada \nPrevisão],0),\"\"),\"\")","v":{"v":0,"d":"R$ 0"}},{"$f":"IFERROR(IF(LeadData[[#This Row],[Previsão \nFechada em]] <>\"\",IF(LeadData[[#This Row],[Previsão \nFechada em]] = \"Novembro\",LeadData[Ponderada \nPrevisão],0),\"\"),\"\")","v":{"v":0,"d":"R$ 0"}},{"$f":"IFERROR(IF(LeadData[[#This Row],[Previsão \nFechada em]] <>\"\",IF(LeadData[[#This Row],[Previsão \nFechada em]] = \"Dezembro\",LeadData[Ponderada \nPrevisão],0),\"\"),\"\")","v":{"v":0,"d":"R$ 0"}}]
[null,{"$f":"IFERROR(IF(AND(LeadData[[#This Row],[Nome do Cliente em Potencial]] <> \"\", ROW(PrevisãoVendas[Nome do cliente em potencial])<>ÚltimaEntrada),LeadData[Nome do Cliente em Potencial], \"\"),\"\")","v":""},{"$f":"IFERROR(IF(LeadData[[#This Row],[Previsão \nFechada em]] <>\"\",IF(LeadData[[#This Row],[Previsão \nFechada em]]= \"Janeiro\",LeadData[Ponderada \nPrevisão],0),\"\"),\"\")","v":""},{"$f":"IFERROR(IF(LeadData[[#This Row],[Previsão \nFechada em]] <>\"\",IF(LeadData[[#This Row],[Previsão \nFechada em]] = \"Fevereiro\",LeadData[Ponderada \nPrevisão],0),\"\"),\"\")","v":""},{"$f":"IFERROR(IF(LeadData[[#This Row],[Previsão \nFechada em]] <>\"\",IF(LeadData[[#This Row],[Previsão \nFechada em]] = \"Março\",LeadData[Ponderada \nPrevisão],0),\"\"),\"\")","v":""},{"$f":"IFERROR(IF(LeadData[[#This Row],[Previsão \nFechada em]] <>\"\",IF(LeadData[[#This Row],[Previsão \nFechada em]] = \"Abril\",LeadData[Ponderada \nPrevisão],0),\"\"),\"\")","v":""},{"$f":"IFERROR(IF(LeadData[[#This Row],[Previsão \nFechada em]] <>\"\",IF(LeadData[[#This Row],[Previsão \nFechada em]] = \"Maio\",LeadData[Ponderada \nPrevisão],0),\"\"),\"\")","v":""},{"$f":"IFERROR(IF(LeadData[[#This Row],[Previsão \nFechada em]] <>\"\",IF(LeadData[[#This Row],[Previsão \nFechada em]] = \"Junho\",LeadData[Ponderada \nPrevisão],0),\"\"),\"\")","v":""},{"$f":"IFERROR(IF(LeadData[[#This Row],[Previsão \nFechada em]] <>\"\",IF(LeadData[[#This Row],[Previsão \nFechada em]] = \"July\",LeadData[Ponderada \nPrevisão],0),\"\"),\"\")","v":""},{"$f":"IFERROR(IF(LeadData[[#This Row],[Previsão \nFechada em]] <>\"\",IF(LeadData[[#This Row],[Previsão \nFechada em]] = \"Agosto\",LeadData[Ponderada \nPrevisão],0),\"\"),\"\")","v":""},{"$f":"IFERROR(IF(LeadData[[#This Row],[Previsão \nFechada em]] <>\"\",IF(LeadData[[#This Row],[Previsão \nFechada em]] = \"Setembro\",LeadData[Ponderada \nPrevisão],0),\"\"),\"\")","v":""},{"$f":"IFERROR(IF(LeadData[[#This Row],[Previsão \nFechada em]] <>\"\",IF(LeadData[[#This Row],[Previsão \nFechada em]] = \"Outubro\",LeadData[Ponderada \nPrevisão],0),\"\"),\"\")","v":""},{"$f":"IFERROR(IF(LeadData[[#This Row],[Previsão \nFechada em]] <>\"\",IF(LeadData[[#This Row],[Previsão \nFechada em]] = \"Novembro\",LeadData[Ponderada \nPrevisão],0),\"\"),\"\")","v":""},{"$f":"IFERROR(IF(LeadData[[#This Row],[Previsão \nFechada em]] <>\"\",IF(LeadData[[#This Row],[Previsão \nFechada em]] = \"Dezembro\",LeadData[Ponderada \nPrevisão],0),\"\"),\"\")","v":""}]
[null,{"$f":"IFERROR(IF(AND(LeadData[[#This Row],[Nome do Cliente em Potencial]] <> \"\", ROW(PrevisãoVendas[Nome do cliente em potencial])<>ÚltimaEntrada),LeadData[Nome do Cliente em Potencial], \"\"),\"\")","v":""},{"$f":"IFERROR(IF(LeadData[[#This Row],[Previsão \nFechada em]] <>\"\",IF(LeadData[[#This Row],[Previsão \nFechada em]]= \"Janeiro\",LeadData[Ponderada \nPrevisão],0),\"\"),\"\")","v":""},{"$f":"IFERROR(IF(LeadData[[#This Row],[Previsão \nFechada em]] <>\"\",IF(LeadData[[#This Row],[Previsão \nFechada em]] = \"Fevereiro\",LeadData[Ponderada \nPrevisão],0),\"\"),\"\")","v":""},{"$f":"IFERROR(IF(LeadData[[#This Row],[Previsão \nFechada em]] <>\"\",IF(LeadData[[#This Row],[Previsão \nFechada em]] = \"Março\",LeadData[Ponderada \nPrevisão],0),\"\"),\"\")","v":""},{"$f":"IFERROR(IF(LeadData[[#This Row],[Previsão \nFechada em]] <>\"\",IF(LeadData[[#This Row],[Previsão \nFechada em]] = \"Abril\",LeadData[Ponderada \nPrevisão],0),\"\"),\"\")","v":""},{"$f":"IFERROR(IF(LeadData[[#This Row],[Previsão \nFechada em]] <>\"\",IF(LeadData[[#This Row],[Previsão \nFechada em]] = \"Maio\",LeadData[Ponderada \nPrevisão],0),\"\"),\"\")","v":""},{"$f":"IFERROR(IF(LeadData[[#This Row],[Previsão \nFechada em]] <>\"\",IF(LeadData[[#This Row],[Previsão \nFechada em]] = \"Junho\",LeadData[Ponderada \nPrevisão],0),\"\"),\"\")","v":""},{"$f":"IFERROR(IF(LeadData[[#This Row],[Previsão \nFechada em]] <>\"\",IF(LeadData[[#This Row],[Previsão \nFechada em]] = \"July\",LeadData[Ponderada \nPrevisão],0),\"\"),\"\")","v":""},{"$f":"IFERROR(IF(LeadData[[#This Row],[Previsão \nFechada em]] <>\"\",IF(LeadData[[#This Row],[Previsão \nFechada em]] = \"Agosto\",LeadData[Ponderada \nPrevisão],0),\"\"),\"\")","v":""},{"$f":"IFERROR(IF(LeadData[[#This Row],[Previsão \nFechada em]] <>\"\",IF(LeadData[[#This Row],[Previsão \nFechada em]] = \"Setembro\",LeadData[Ponderada \nPrevisão],0),\"\"),\"\")","v":""},{"$f":"IFERROR(IF(LeadData[[#This Row],[Previsão \nFechada em]] <>\"\",IF(LeadData[[#This Row],[Previsão \nFechada em]] = \"Outubro\",LeadData[Ponderada \nPrevisão],0),\"\"),\"\")","v":""},{"$f":"IFERROR(IF(LeadData[[#This Row],[Previsão \nFechada em]] <>\"\",IF(LeadData[[#This Row],[Previsão \nFechada em]] = \"Novembro\",LeadData[Ponderada \nPrevisão],0),\"\"),\"\")","v":""},{"$f":"IFERROR(IF(LeadData[[#This Row],[Previsão \nFechada em]] <>\"\",IF(LeadData[[#This Row],[Previsão \nFechada em]] = \"Dezembro\",LeadData[Ponderada \nPrevisão],0),\"\"),\"\")","v":""}]
[null,{"$f":"IFERROR(IF(AND(LeadData[[#This Row],[Nome do Cliente em Potencial]] <> \"\", ROW(PrevisãoVendas[Nome do cliente em potencial])<>ÚltimaEntrada),LeadData[Nome do Cliente em Potencial], \"\"),\"\")","v":""},{"$f":"IFERROR(IF(LeadData[[#This Row],[Previsão \nFechada em]] <>\"\",IF(LeadData[[#This Row],[Previsão \nFechada em]]= \"Janeiro\",LeadData[Ponderada \nPrevisão],0),\"\"),\"\")","v":""},{"$f":"IFERROR(IF(LeadData[[#This Row],[Previsão \nFechada em]] <>\"\",IF(LeadData[[#This Row],[Previsão \nFechada em]] = \"Fevereiro\",LeadData[Ponderada \nPrevisão],0),\"\"),\"\")","v":""},{"$f":"IFERROR(IF(LeadData[[#This Row],[Previsão \nFechada em]] <>\"\",IF(LeadData[[#This Row],[Previsão \nFechada em]] = \"Março\",LeadData[Ponderada \nPrevisão],0),\"\"),\"\")","v":""},{"$f":"IFERROR(IF(LeadData[[#This Row],[Previsão \nFechada em]] <>\"\",IF(LeadData[[#This Row],[Previsão \nFechada em]] = \"Abril\",LeadData[Ponderada \nPrevisão],0),\"\"),\"\")","v":""},{"$f":"IFERROR(IF(LeadData[[#This Row],[Previsão \nFechada em]] <>\"\",IF(LeadData[[#This Row],[Previsão \nFechada em]] = \"Maio\",LeadData[Ponderada \nPrevisão],0),\"\"),\"\")","v":""},{"$f":"IFERROR(IF(LeadData[[#This Row],[Previsão \nFechada em]] <>\"\",IF(LeadData[[#This Row],[Previsão \nFechada em]] = \"Junho\",LeadData[Ponderada \nPrevisão],0),\"\"),\"\")","v":""},{"$f":"IFERROR(IF(LeadData[[#This Row],[Previsão \nFechada em]] <>\"\",IF(LeadData[[#This Row],[Previsão \nFechada em]] = \"July\",LeadData[Ponderada \nPrevisão],0),\"\"),\"\")","v":""},{"$f":"IFERROR(IF(LeadData[[#This Row],[Previsão \nFechada em]] <>\"\",IF(LeadData[[#This Row],[Previsão \nFechada em]] = \"Agosto\",LeadData[Ponderada \nPrevisão],0),\"\"),\"\")","v":""},{"$f":"IFERROR(IF(LeadData[[#This Row],[Previsão \nFechada em]] <>\"\",IF(LeadData[[#This Row],[Previsão \nFechada em]] = \"Setembro\",LeadData[Ponderada \nPrevisão],0),\"\"),\"\")","v":""},{"$f":"IFERROR(IF(LeadData[[#This Row],[Previsão \nFechada em]] <>\"\",IF(LeadData[[#This Row],[Previsão \nFechada em]] = \"Outubro\",LeadData[Ponderada \nPrevisão],0),\"\"),\"\")","v":""},{"$f":"IFERROR(IF(LeadData[[#This Row],[Previsão \nFechada em]] <>\"\",IF(LeadData[[#This Row],[Previsão \nFechada em]] = \"Novembro\",LeadData[Ponderada \nPrevisão],0),\"\"),\"\")","v":""},{"$f":"IFERROR(IF(LeadData[[#This Row],[Previsão \nFechada em]] <>\"\",IF(LeadData[[#This Row],[Previsão \nFechada em]] = \"Dezembro\",LeadData[Ponderada \nPrevisão],0),\"\"),\"\")","v":""}]
[null,{"$f":"IFERROR(IF(AND(LeadData[[#This Row],[Nome do Cliente em Potencial]] <> \"\", ROW(PrevisãoVendas[Nome do cliente em potencial])<>ÚltimaEntrada),LeadData[Nome do Cliente em Potencial], \"\"),\"\")","v":""},{"$f":"IFERROR(IF(LeadData[[#This Row],[Previsão \nFechada em]] <>\"\",IF(LeadData[[#This Row],[Previsão \nFechada em]]= \"Janeiro\",LeadData[Ponderada \nPrevisão],0),\"\"),\"\")","v":""},{"$f":"IFERROR(IF(LeadData[[#This Row],[Previsão \nFechada em]] <>\"\",IF(LeadData[[#This Row],[Previsão \nFechada em]] = \"Fevereiro\",LeadData[Ponderada \nPrevisão],0),\"\"),\"\")","v":""},{"$f":"IFERROR(IF(LeadData[[#This Row],[Previsão \nFechada em]] <>\"\",IF(LeadData[[#This Row],[Previsão \nFechada em]] = \"Março\",LeadData[Ponderada \nPrevisão],0),\"\"),\"\")","v":""},{"$f":"IFERROR(IF(LeadData[[#This Row],[Previsão \nFechada em]] <>\"\",IF(LeadData[[#This Row],[Previsão \nFechada em]] = \"Abril\",LeadData[Ponderada \nPrevisão],0),\"\"),\"\")","v":""},{"$f":"IFERROR(IF(LeadData[[#This Row],[Previsão \nFechada em]] <>\"\",IF(LeadData[[#This Row],[Previsão \nFechada em]] = \"Maio\",LeadData[Ponderada \nPrevisão],0),\"\"),\"\")","v":""},{"$f":"IFERROR(IF(LeadData[[#This Row],[Previsão \nFechada em]] <>\"\",IF(LeadData[[#This Row],[Previsão \nFechada em]] = \"Junho\",LeadData[Ponderada \nPrevisão],0),\"\"),\"\")","v":""},{"$f":"IFERROR(IF(LeadData[[#This Row],[Previsão \nFechada em]] <>\"\",IF(LeadData[[#This Row],[Previsão \nFechada em]] = \"July\",LeadData[Ponderada \nPrevisão],0),\"\"),\"\")","v":""},{"$f":"IFERROR(IF(LeadData[[#This Row],[Previsão \nFechada em]] <>\"\",IF(LeadData[[#This Row],[Previsão \nFechada em]] = \"Agosto\",LeadData[Ponderada \nPrevisão],0),\"\"),\"\")","v":""},{"$f":"IFERROR(IF(LeadData[[#This Row],[Previsão \nFechada em]] <>\"\",IF(LeadData[[#This Row],[Previsão \nFechada em]] = \"Setembro\",LeadData[Ponderada \nPrevisão],0),\"\"),\"\")","v":""},{"$f":"IFERROR(IF(LeadData[[#This Row],[Previsão \nFechada em]] <>\"\",IF(LeadData[[#This Row],[Previsão \nFechada em]] = \"Outubro\",LeadData[Ponderada \nPrevisão],0),\"\"),\"\")","v":""},{"$f":"IFERROR(IF(LeadData[[#This Row],[Previsão \nFechada em]] <>\"\",IF(LeadData[[#This Row],[Previsão \nFechada em]] = \"Novembro\",LeadData[Ponderada \nPrevisão],0),\"\"),\"\")","v":""},{"$f":"IFERROR(IF(LeadData[[#This Row],[Previsão \nFechada em]] <>\"\",IF(LeadData[[#This Row],[Previsão \nFechada em]] = \"Dezembro\",LeadData[Ponderada \nPrevisão],0),\"\"),\"\")","v":""}]
[null,{"$f":"IFERROR(IF(AND(LeadData[[#This Row],[Nome do Cliente em Potencial]] <> \"\", ROW(PrevisãoVendas[Nome do cliente em potencial])<>ÚltimaEntrada),LeadData[Nome do Cliente em Potencial], \"\"),\"\")","v":""},{"$f":"IFERROR(IF(LeadData[[#This Row],[Previsão \nFechada em]] <>\"\",IF(LeadData[[#This Row],[Previsão \nFechada em]]= \"Janeiro\",LeadData[Ponderada \nPrevisão],0),\"\"),\"\")","v":""},{"$f":"IFERROR(IF(LeadData[[#This Row],[Previsão \nFechada em]] <>\"\",IF(LeadData[[#This Row],[Previsão \nFechada em]] = \"Fevereiro\",LeadData[Ponderada \nPrevisão],0),\"\"),\"\")","v":""},{"$f":"IFERROR(IF(LeadData[[#This Row],[Previsão \nFechada em]] <>\"\",IF(LeadData[[#This Row],[Previsão \nFechada em]] = \"Março\",LeadData[Ponderada \nPrevisão],0),\"\"),\"\")","v":""},{"$f":"IFERROR(IF(LeadData[[#This Row],[Previsão \nFechada em]] <>\"\",IF(LeadData[[#This Row],[Previsão \nFechada em]] = \"Abril\",LeadData[Ponderada \nPrevisão],0),\"\"),\"\")","v":""},{"$f":"IFERROR(IF(LeadData[[#This Row],[Previsão \nFechada em]] <>\"\",IF(LeadData[[#This Row],[Previsão \nFechada em]] = \"Maio\",LeadData[Ponderada \nPrevisão],0),\"\"),\"\")","v":""},{"$f":"IFERROR(IF(LeadData[[#This Row],[Previsão \nFechada em]] <>\"\",IF(LeadData[[#This Row],[Previsão \nFechada em]] = \"Junho\",LeadData[Ponderada \nPrevisão],0),\"\"),\"\")","v":""},{"$f":"IFERROR(IF(LeadData[[#This Row],[Previsão \nFechada em]] <>\"\",IF(LeadData[[#This Row],[Previsão \nFechada em]] = \"July\",LeadData[Ponderada \nPrevisão],0),\"\"),\"\")","v":""},{"$f":"IFERROR(IF(LeadData[[#This Row],[Previsão \nFechada em]] <>\"\",IF(LeadData[[#This Row],[Previsão \nFechada em]] = \"Agosto\",LeadData[Ponderada \nPrevisão],0),\"\"),\"\")","v":""},{"$f":"IFERROR(IF(LeadData[[#This Row],[Previsão \nFechada em]] <>\"\",IF(LeadData[[#This Row],[Previsão \nFechada em]] = \"Setembro\",LeadData[Ponderada \nPrevisão],0),\"\"),\"\")","v":""},{"$f":"IFERROR(IF(LeadData[[#This Row],[Previsão \nFechada em]] <>\"\",IF(LeadData[[#This Row],[Previsão \nFechada em]] = \"Outubro\",LeadData[Ponderada \nPrevisão],0),\"\"),\"\")","v":""},{"$f":"IFERROR(IF(LeadData[[#This Row],[Previsão \nFechada em]] <>\"\",IF(LeadData[[#This Row],[Previsão \nFechada em]] = \"Novembro\",LeadData[Ponderada \nPrevisão],0),\"\"),\"\")","v":""},{"$f":"IFERROR(IF(LeadData[[#This Row],[Previsão \nFechada em]] <>\"\",IF(LeadData[[#This Row],[Previsão \nFechada em]] = \"Dezembro\",LeadData[Ponderada \nPrevisão],0),\"\"),\"\")","v":""}]
[null,{"$f":"IFERROR(IF(AND(LeadData[[#This Row],[Nome do Cliente em Potencial]] <> \"\", ROW(PrevisãoVendas[Nome do cliente em potencial])<>ÚltimaEntrada),LeadData[Nome do Cliente em Potencial], \"\"),\"\")","v":""},{"$f":"IFERROR(IF(LeadData[[#This Row],[Previsão \nFechada em]] <>\"\",IF(LeadData[[#This Row],[Previsão \nFechada em]]= \"Janeiro\",LeadData[Ponderada \nPrevisão],0),\"\"),\"\")","v":""},{"$f":"IFERROR(IF(LeadData[[#This Row],[Previsão \nFechada em]] <>\"\",IF(LeadData[[#This Row],[Previsão \nFechada em]] = \"Fevereiro\",LeadData[Ponderada \nPrevisão],0),\"\"),\"\")","v":""},{"$f":"IFERROR(IF(LeadData[[#This Row],[Previsão \nFechada em]] <>\"\",IF(LeadData[[#This Row],[Previsão \nFechada em]] = \"Março\",LeadData[Ponderada \nPrevisão],0),\"\"),\"\")","v":""},{"$f":"IFERROR(IF(LeadData[[#This Row],[Previsão \nFechada em]] <>\"\",IF(LeadData[[#This Row],[Previsão \nFechada em]] = \"Abril\",LeadData[Ponderada \nPrevisão],0),\"\"),\"\")","v":""},{"$f":"IFERROR(IF(LeadData[[#This Row],[Previsão \nFechada em]] <>\"\",IF(LeadData[[#This Row],[Previsão \nFechada em]] = \"Maio\",LeadData[Ponderada \nPrevisão],0),\"\"),\"\")","v":""},{"$f":"IFERROR(IF(LeadData[[#This Row],[Previsão \nFechada em]] <>\"\",IF(LeadData[[#This Row],[Previsão \nFechada em]] = \"Junho\",LeadData[Ponderada \nPrevisão],0),\"\"),\"\")","v":""},{"$f":"IFERROR(IF(LeadData[[#This Row],[Previsão \nFechada em]] <>\"\",IF(LeadData[[#This Row],[Previsão \nFechada em]] = \"July\",LeadData[Ponderada \nPrevisão],0),\"\"),\"\")","v":""},{"$f":"IFERROR(IF(LeadData[[#This Row],[Previsão \nFechada em]] <>\"\",IF(LeadData[[#This Row],[Previsão \nFechada em]] = \"Agosto\",LeadData[Ponderada \nPrevisão],0),\"\"),\"\")","v":""},{"$f":"IFERROR(IF(LeadData[[#This Row],[Previsão \nFechada em]] <>\"\",IF(LeadData[[#This Row],[Previsão \nFechada em]] = \"Setembro\",LeadData[Ponderada \nPrevisão],0),\"\"),\"\")","v":""},{"$f":"IFERROR(IF(LeadData[[#This Row],[Previsão \nFechada em]] <>\"\",IF(LeadData[[#This Row],[Previsão \nFechada em]] = \"Outubro\",LeadData[Ponderada \nPrevisão],0),\"\"),\"\")","v":""},{"$f":"IFERROR(IF(LeadData[[#This Row],[Previsão \nFechada em]] <>\"\",IF(LeadData[[#This Row],[Previsão \nFechada em]] = \"Novembro\",LeadData[Ponderada \nPrevisão],0),\"\"),\"\")","v":""},{"$f":"IFERROR(IF(LeadData[[#This Row],[Previsão \nFechada em]] <>\"\",IF(LeadData[[#This Row],[Previsão \nFechada em]] = \"Dezembro\",LeadData[Ponderada \nPrevisão],0),\"\"),\"\")","v":""}]
[null,{"$f":"IFERROR(IF(AND(LeadData[[#This Row],[Nome do Cliente em Potencial]] <> \"\", ROW(PrevisãoVendas[Nome do cliente em potencial])<>ÚltimaEntrada),LeadData[Nome do Cliente em Potencial], \"\"),\"\")","v":""},{"$f":"IFERROR(IF(LeadData[[#This Row],[Previsão \nFechada em]] <>\"\",IF(LeadData[[#This Row],[Previsão \nFechada em]]= \"Janeiro\",LeadData[Ponderada \nPrevisão],0),\"\"),\"\")","v":""},{"$f":"IFERROR(IF(LeadData[[#This Row],[Previsão \nFechada em]] <>\"\",IF(LeadData[[#This Row],[Previsão \nFechada em]] = \"Fevereiro\",LeadData[Ponderada \nPrevisão],0),\"\"),\"\")","v":""},{"$f":"IFERROR(IF(LeadData[[#This Row],[Previsão \nFechada em]] <>\"\",IF(LeadData[[#This Row],[Previsão \nFechada em]] = \"Março\",LeadData[Ponderada \nPrevisão],0),\"\"),\"\")","v":""},{"$f":"IFERROR(IF(LeadData[[#This Row],[Previsão \nFechada em]] <>\"\",IF(LeadData[[#This Row],[Previsão \nFechada em]] = \"Abril\",LeadData[Ponderada \nPrevisão],0),\"\"),\"\")","v":""},{"$f":"IFERROR(IF(LeadData[[#This Row],[Previsão \nFechada em]] <>\"\",IF(LeadData[[#This Row],[Previsão \nFechada em]] = \"Maio\",LeadData[Ponderada \nPrevisão],0),\"\"),\"\")","v":""},{"$f":"IFERROR(IF(LeadData[[#This Row],[Previsão \nFechada em]] <>\"\",IF(LeadData[[#This Row],[Previsão \nFechada em]] = \"Junho\",LeadData[Ponderada \nPrevisão],0),\"\"),\"\")","v":""},{"$f":"IFERROR(IF(LeadData[[#This Row],[Previsão \nFechada em]] <>\"\",IF(LeadData[[#This Row],[Previsão \nFechada em]] = \"July\",LeadData[Ponderada \nPrevisão],0),\"\"),\"\")","v":""},{"$f":"IFERROR(IF(LeadData[[#This Row],[Previsão \nFechada em]] <>\"\",IF(LeadData[[#This Row],[Previsão \nFechada em]] = \"Agosto\",LeadData[Ponderada \nPrevisão],0),\"\"),\"\")","v":""},{"$f":"IFERROR(IF(LeadData[[#This Row],[Previsão \nFechada em]] <>\"\",IF(LeadData[[#This Row],[Previsão \nFechada em]] = \"Setembro\",LeadData[Ponderada \nPrevisão],0),\"\"),\"\")","v":""},{"$f":"IFERROR(IF(LeadData[[#This Row],[Previsão \nFechada em]] <>\"\",IF(LeadData[[#This Row],[Previsão \nFechada em]] = \"Outubro\",LeadData[Ponderada \nPrevisão],0),\"\"),\"\")","v":""},{"$f":"IFERROR(IF(LeadData[[#This Row],[Previsão \nFechada em]] <>\"\",IF(LeadData[[#This Row],[Previsão \nFechada em]] = \"Novembro\",LeadData[Ponderada \nPrevisão],0),\"\"),\"\")","v":""},{"$f":"IFERROR(IF(LeadData[[#This Row],[Previsão \nFechada em]] <>\"\",IF(LeadData[[#This Row],[Previsão \nFechada em]] = \"Dezembro\",LeadData[Ponderada \nPrevisão],0),\"\"),\"\")","v":""}]
[null,{"$f":"IFERROR(IF(AND(LeadData[[#This Row],[Nome do Cliente em Potencial]] <> \"\", ROW(PrevisãoVendas[Nome do cliente em potencial])<>ÚltimaEntrada),LeadData[Nome do Cliente em Potencial], \"\"),\"\")","v":""},{"$f":"IFERROR(IF(LeadData[[#This Row],[Previsão \nFechada em]] <>\"\",IF(LeadData[[#This Row],[Previsão \nFechada em]]= \"Janeiro\",LeadData[Ponderada \nPrevisão],0),\"\"),\"\")","v":""},{"$f":"IFERROR(IF(LeadData[[#This Row],[Previsão \nFechada em]] <>\"\",IF(LeadData[[#This Row],[Previsão \nFechada em]] = \"Fevereiro\",LeadData[Ponderada \nPrevisão],0),\"\"),\"\")","v":""},{"$f":"IFERROR(IF(LeadData[[#This Row],[Previsão \nFechada em]] <>\"\",IF(LeadData[[#This Row],[Previsão \nFechada em]] = \"Março\",LeadData[Ponderada \nPrevisão],0),\"\"),\"\")","v":""},{"$f":"IFERROR(IF(LeadData[[#This Row],[Previsão \nFechada em]] <>\"\",IF(LeadData[[#This Row],[Previsão \nFechada em]] = \"Abril\",LeadData[Ponderada \nPrevisão],0),\"\"),\"\")","v":""},{"$f":"IFERROR(IF(LeadData[[#This Row],[Previsão \nFechada em]] <>\"\",IF(LeadData[[#This Row],[Previsão \nFechada em]] = \"Maio\",LeadData[Ponderada \nPrevisão],0),\"\"),\"\")","v":""},{"$f":"IFERROR(IF(LeadData[[#This Row],[Previsão \nFechada em]] <>\"\",IF(LeadData[[#This Row],[Previsão \nFechada em]] = \"Junho\",LeadData[Ponderada \nPrevisão],0),\"\"),\"\")","v":""},{"$f":"IFERROR(IF(LeadData[[#This Row],[Previsão \nFechada em]] <>\"\",IF(LeadData[[#This Row],[Previsão \nFechada em]] = \"July\",LeadData[Ponderada \nPrevisão],0),\"\"),\"\")","v":""},{"$f":"IFERROR(IF(LeadData[[#This Row],[Previsão \nFechada em]] <>\"\",IF(LeadData[[#This Row],[Previsão \nFechada em]] = \"Agosto\",LeadData[Ponderada \nPrevisão],0),\"\"),\"\")","v":""},{"$f":"IFERROR(IF(LeadData[[#This Row],[Previsão \nFechada em]] <>\"\",IF(LeadData[[#This Row],[Previsão \nFechada em]] = \"Setembro\",LeadData[Ponderada \nPrevisão],0),\"\"),\"\")","v":""},{"$f":"IFERROR(IF(LeadData[[#This Row],[Previsão \nFechada em]] <>\"\",IF(LeadData[[#This Row],[Previsão \nFechada em]] = \"Outubro\",LeadData[Ponderada \nPrevisão],0),\"\"),\"\")","v":""},{"$f":"IFERROR(IF(LeadData[[#This Row],[Previsão \nFechada em]] <>\"\",IF(LeadData[[#This Row],[Previsão \nFechada em]] = \"Novembro\",LeadData[Ponderada \nPrevisão],0),\"\"),\"\")","v":""},{"$f":"IFERROR(IF(LeadData[[#This Row],[Previsão \nFechada em]] <>\"\",IF(LeadData[[#This Row],[Previsão \nFechada em]] = \"Dezembro\",LeadData[Ponderada \nPrevisão],0),\"\"),\"\")","v":""}]
[null,{"$f":"IFERROR(IF(AND(LeadData[[#This Row],[Nome do Cliente em Potencial]] <> \"\", ROW(PrevisãoVendas[Nome do cliente em potencial])<>ÚltimaEntrada),LeadData[Nome do Cliente em Potencial], \"\"),\"\")","v":""},{"$f":"IFERROR(IF(LeadData[[#This Row],[Previsão \nFechada em]] <>\"\",IF(LeadData[[#This Row],[Previsão \nFechada em]]= \"Janeiro\",LeadData[Ponderada \nPrevisão],0),\"\"),\"\")","v":""},{"$f":"IFERROR(IF(LeadData[[#This Row],[Previsão \nFechada em]] <>\"\",IF(LeadData[[#This Row],[Previsão \nFechada em]] = \"Fevereiro\",LeadData[Ponderada \nPrevisão],0),\"\"),\"\")","v":""},{"$f":"IFERROR(IF(LeadData[[#This Row],[Previsão \nFechada em]] <>\"\",IF(LeadData[[#This Row],[Previsão \nFechada em]] = \"Março\",LeadData[Ponderada \nPrevisão],0),\"\"),\"\")","v":""},{"$f":"IFERROR(IF(LeadData[[#This Row],[Previsão \nFechada em]] <>\"\",IF(LeadData[[#This Row],[Previsão \nFechada em]] = \"Abril\",LeadData[Ponderada \nPrevisão],0),\"\"),\"\")","v":""},{"$f":"IFERROR(IF(LeadData[[#This Row],[Previsão \nFechada em]] <>\"\",IF(LeadData[[#This Row],[Previsão \nFechada em]] = \"Maio\",LeadData[Ponderada \nPrevisão],0),\"\"),\"\")","v":""},{"$f":"IFERROR(IF(LeadData[[#This Row],[Previsão \nFechada em]] <>\"\",IF(LeadData[[#This Row],[Previsão \nFechada em]] = \"Junho\",LeadData[Ponderada \nPrevisão],0),\"\"),\"\")","v":""},{"$f":"IFERROR(IF(LeadData[[#This Row],[Previsão \nFechada em]] <>\"\",IF(LeadData[[#This Row],[Previsão \nFechada em]] = \"July\",LeadData[Ponderada \nPrevisão],0),\"\"),\"\")","v":""},{"$f":"IFERROR(IF(LeadData[[#This Row],[Previsão \nFechada em]] <>\"\",IF(LeadData[[#This Row],[Previsão \nFechada em]] = \"Agosto\",LeadData[Ponderada \nPrevisão],0),\"\"),\"\")","v":""},{"$f":"IFERROR(IF(LeadData[[#This Row],[Previsão \nFechada em]] <>\"\",IF(LeadData[[#This Row],[Previsão \nFechada em]] = \"Setembro\",LeadData[Ponderada \nPrevisão],0),\"\"),\"\")","v":""},{"$f":"IFERROR(IF(LeadData[[#This Row],[Previsão \nFechada em]] <>\"\",IF(LeadData[[#This Row],[Previsão \nFechada em]] = \"Outubro\",LeadData[Ponderada \nPrevisão],0),\"\"),\"\")","v":""},{"$f":"IFERROR(IF(LeadData[[#This Row],[Previsão \nFechada em]] <>\"\",IF(LeadData[[#This Row],[Previsão \nFechada em]] = \"Novembro\",LeadData[Ponderada \nPrevisão],0),\"\"),\"\")","v":""},{"$f":"IFERROR(IF(LeadData[[#This Row],[Previsão \nFechada em]] <>\"\",IF(LeadData[[#This Row],[Previsão \nFechada em]] = \"Dezembro\",LeadData[Ponderada \nPrevisão],0),\"\"),\"\")","v":""}]
[null,{"$f":"IFERROR(IF(AND(LeadData[[#This Row],[Nome do Cliente em Potencial]] <> \"\", ROW(PrevisãoVendas[Nome do cliente em potencial])<>ÚltimaEntrada),LeadData[Nome do Cliente em Potencial], \"\"),\"\")","v":""},{"$f":"IFERROR(IF(LeadData[[#This Row],[Previsão \nFechada em]] <>\"\",IF(LeadData[[#This Row],[Previsão \nFechada em]]= \"Janeiro\",LeadData[Ponderada \nPrevisão],0),\"\"),\"\")","v":""},{"$f":"IFERROR(IF(LeadData[[#This Row],[Previsão \nFechada em]] <>\"\",IF(LeadData[[#This Row],[Previsão \nFechada em]] = \"Fevereiro\",LeadData[Ponderada \nPrevisão],0),\"\"),\"\")","v":""},{"$f":"IFERROR(IF(LeadData[[#This Row],[Previsão \nFechada em]] <>\"\",IF(LeadData[[#This Row],[Previsão \nFechada em]] = \"Março\",LeadData[Ponderada \nPrevisão],0),\"\"),\"\")","v":""},{"$f":"IFERROR(IF(LeadData[[#This Row],[Previsão \nFechada em]] <>\"\",IF(LeadData[[#This Row],[Previsão \nFechada em]] = \"Abril\",LeadData[Ponderada \nPrevisão],0),\"\"),\"\")","v":""},{"$f":"IFERROR(IF(LeadData[[#This Row],[Previsão \nFechada em]] <>\"\",IF(LeadData[[#This Row],[Previsão \nFechada em]] = \"Maio\",LeadData[Ponderada \nPrevisão],0),\"\"),\"\")","v":""},{"$f":"IFERROR(IF(LeadData[[#This Row],[Previsão \nFechada em]] <>\"\",IF(LeadData[[#This Row],[Previsão \nFechada em]] = \"Junho\",LeadData[Ponderada \nPrevisão],0),\"\"),\"\")","v":""},{"$f":"IFERROR(IF(LeadData[[#This Row],[Previsão \nFechada em]] <>\"\",IF(LeadData[[#This Row],[Previsão \nFechada em]] = \"July\",LeadData[Ponderada \nPrevisão],0),\"\"),\"\")","v":""},{"$f":"IFERROR(IF(LeadData[[#This Row],[Previsão \nFechada em]] <>\"\",IF(LeadData[[#This Row],[Previsão \nFechada em]] = \"Agosto\",LeadData[Ponderada \nPrevisão],0),\"\"),\"\")","v":""},{"$f":"IFERROR(IF(LeadData[[#This Row],[Previsão \nFechada em]] <>\"\",IF(LeadData[[#This Row],[Previsão \nFechada em]] = \"Setembro\",LeadData[Ponderada \nPrevisão],0),\"\"),\"\")","v":""},{"$f":"IFERROR(IF(LeadData[[#This Row],[Previsão \nFechada em]] <>\"\",IF(LeadData[[#This Row],[Previsão \nFechada em]] = \"Outubro\",LeadData[Ponderada \nPrevisão],0),\"\"),\"\")","v":""},{"$f":"IFERROR(IF(LeadData[[#This Row],[Previsão \nFechada em]] <>\"\",IF(LeadData[[#This Row],[Previsão \nFechada em]] = \"Novembro\",LeadData[Ponderada \nPrevisão],0),\"\"),\"\")","v":""},{"$f":"IFERROR(IF(LeadData[[#This Row],[Previsão \nFechada em]] <>\"\",IF(LeadData[[#This Row],[Previsão \nFechada em]] = \"Dezembro\",LeadData[Ponderada \nPrevisão],0),\"\"),\"\")","v":""}]
[null,{"$f":"IFERROR(IF(AND(LeadData[[#This Row],[Nome do Cliente em Potencial]] <> \"\", ROW(PrevisãoVendas[Nome do cliente em potencial])<>ÚltimaEntrada),LeadData[Nome do Cliente em Potencial], \"\"),\"\")","v":""},{"$f":"IFERROR(IF(LeadData[[#This Row],[Previsão \nFechada em]] <>\"\",IF(LeadData[[#This Row],[Previsão \nFechada em]]= \"Janeiro\",LeadData[Ponderada \nPrevisão],0),\"\"),\"\")","v":""},{"$f":"IFERROR(IF(LeadData[[#This Row],[Previsão \nFechada em]] <>\"\",IF(LeadData[[#This Row],[Previsão \nFechada em]] = \"Fevereiro\",LeadData[Ponderada \nPrevisão],0),\"\"),\"\")","v":""},{"$f":"IFERROR(IF(LeadData[[#This Row],[Previsão \nFechada em]] <>\"\",IF(LeadData[[#This Row],[Previsão \nFechada em]] = \"Março\",LeadData[Ponderada \nPrevisão],0),\"\"),\"\")","v":""},{"$f":"IFERROR(IF(LeadData[[#This Row],[Previsão \nFechada em]] <>\"\",IF(LeadData[[#This Row],[Previsão \nFechada em]] = \"Abril\",LeadData[Ponderada \nPrevisão],0),\"\"),\"\")","v":""},{"$f":"IFERROR(IF(LeadData[[#This Row],[Previsão \nFechada em]] <>\"\",IF(LeadData[[#This Row],[Previsão \nFechada em]] = \"Maio\",LeadData[Ponderada \nPrevisão],0),\"\"),\"\")","v":""},{"$f":"IFERROR(IF(LeadData[[#This Row],[Previsão \nFechada em]] <>\"\",IF(LeadData[[#This Row],[Previsão \nFechada em]] = \"Junho\",LeadData[Ponderada \nPrevisão],0),\"\"),\"\")","v":""},{"$f":"IFERROR(IF(LeadData[[#This Row],[Previsão \nFechada em]] <>\"\",IF(LeadData[[#This Row],[Previsão \nFechada em]] = \"July\",LeadData[Ponderada \nPrevisão],0),\"\"),\"\")","v":""},{"$f":"IFERROR(IF(LeadData[[#This Row],[Previsão \nFechada em]] <>\"\",IF(LeadData[[#This Row],[Previsão \nFechada em]] = \"Agosto\",LeadData[Ponderada \nPrevisão],0),\"\"),\"\")","v":""},{"$f":"IFERROR(IF(LeadData[[#This Row],[Previsão \nFechada em]] <>\"\",IF(LeadData[[#This Row],[Previsão \nFechada em]] = \"Setembro\",LeadData[Ponderada \nPrevisão],0),\"\"),\"\")","v":""},{"$f":"IFERROR(IF(LeadData[[#This Row],[Previsão \nFechada em]] <>\"\",IF(LeadData[[#This Row],[Previsão \nFechada em]] = \"Outubro\",LeadData[Ponderada \nPrevisão],0),\"\"),\"\")","v":""},{"$f":"IFERROR(IF(LeadData[[#This Row],[Previsão \nFechada em]] <>\"\",IF(LeadData[[#This Row],[Previsão \nFechada em]] = \"Novembro\",LeadData[Ponderada \nPrevisão],0),\"\"),\"\")","v":""},{"$f":"IFERROR(IF(LeadData[[#This Row],[Previsão \nFechada em]] <>\"\",IF(LeadData[[#This Row],[Previsão \nFechada em]] = \"Dezembro\",LeadData[Ponderada \nPrevisão],0),\"\"),\"\")","v":""}]
[null,"Total",{"$f":"SUBTOTAL(109,PrevisãoVendas[Janeiro \nPrevisão])","v":{"v":270000,"d":"R$ 270,000"}},{"$f":"SUBTOTAL(109,PrevisãoVendas[Fevereiro \nPrevisão])","v":{"v":20000,"d":"R$ 20,000"}},{"$f":"SUBTOTAL(109,PrevisãoVendas[Março \nPrevisão])","v":{"v":20000,"d":"R$ 20,000"}},{"$f":"SUBTOTAL(109,PrevisãoVendas[Abril \nPrevisão])","v":{"v":0,"d":"R$ 0"}},{"$f":"SUBTOTAL(109,PrevisãoVendas[Maio \nPrevisão])","v":{"v":0,"d":"R$ 0"}},{"$f":"SUBTOTAL(109,PrevisãoVendas[Junho \nPrevisão])","v":{"v":0,"d":"R$ 0"}},{"$f":"SUBTOTAL(109,PrevisãoVendas[Previsão para julho])","v":{"v":0,"d":"R$ 0"}},{"$f":"SUBTOTAL(109,PrevisãoVendas[Agosto \nPrevisão])","v":{"v":0,"d":"R$ 0"}},{"$f":"SUBTOTAL(109,PrevisãoVendas[Setembro \nPrevisão])","v":{"v":0,"d":"R$ 0"}},{"$f":"SUBTOTAL(109,PrevisãoVendas[Outubro \nPrevisão])","v":{"v":0,"d":"R$ 0"}},{"$f":"SUBTOTAL(109,PrevisãoVendas[Novembro \nPrevisão])","v":{"v":0,"d":"R$ 0"}},{"$f":"SUBTOTAL(109,PrevisãoVendas[Dezembro \nPrevisão])","v":{"v":0,"d":"R$ 0"}}]
[null,"Total Acumulado",{"$f":"C20","v":{"v":270000,"d":"R$ 270,000"}},{"$f":"C21+D20","v":{"v":290000,"d":"R$ 290,000"}},{"v":310000,"d":"R$ 310,000"},{"v":310000,"d":"R$ 310,000"},{"v":310000,"d":"R$ 310,000"},{"v":310000,"d":"R$ 310,000"},{"v":310000,"d":"R$ 310,000"},{"v":310000,"d":"R$ 310,000"},{"v":310000,"d":"R$ 310,000"},{"v":310000,"d":"R$ 310,000"},{"v":310000,"d":"R$ 310,000"},{"v":310000,"d":"R$ 310,000"}]

{"sheet":"Previsão Ponderada Mensal","index":2,"n_rows":3,"n_cols":2,"rows_kept":3}
[null,{"$f":"Nome_Empresa","v":"Nome da Empresa"}]
[null,"Previsão mensal ponderada"]
[null," "]